[Event "12th WLC Weekend 2022"]
[Site "Eindhoven"]
[Date "2022.05.14"]
[Round "2.22"]
[White "Smit, Maarten"]
[Black "Molenaar, Toine"]
[Result "1-0"]
[ECO "A13"]
[WhiteElo "2056"]
[BlackElo "1823"]
[Annotator "TA"]
[PlyCount "85"]
[EventDate "2022.05.13"]
[EventType "swiss"]
[EventCountry "NED"]
[SourceTitle "playchess.com"]
[Source "ChessBase"]
[SourceQuality "1"]
[TimeControl "5400+30"]

{[%evp 15,85,0,13,11,10,-4,0,0,0,0,8,8,0,0,0,0,24,20,29,23,48,55,51,54,59,33,15,0,15,0,0,0,18,16,19,0,0,0,0,0,118,104,117,118,125,115,222,219,222,222,222,211,247,187,181,162,234,189,200,161,324,318,318,311,425,412,458,459,646,685,679,654]} 1. c4 {[%emt 0:00:03]} e6 {[%emt 0:00:05]} 2. g3 {[%emt 0:00:05]} d5 {[%emt 0:00:07]} 3. Bg2 {[%emt 0:00:06]} Nf6 {[%emt 0:00:10]} 4. Nf3 {[%emt 0:00:08]} dxc4 {[%emt 0:04:04]} 5. Qa4+ {[%emt 0:06:35]} Nbd7 {[%emt 0:00:51]} 6. O-O {[%emt 0:06:14]} a6 {[%emt 0:06:57]} 7. Qxc4 {[%emt 0:00:09]} b5 {[%emt 0:01:39]} 8. Qc2 {[%emt 0:03:17]} Bb7 {[%emt 0:01:20]} 9. d3 {[%emt 0:10:16] A13: English Opening: 1...e6.} Be7 {[%emt 0:02:13]} 10. Nbd2 {[%emt 0:06:06]} O-O {[%emt 0:00:56]} 11. Nb3 {[%emt 0:11:06] The position is equal.} c5 {[%emt 0:02:10]} 12. Bd2 {[%emt 0:01:18] [#]} a5 $146 {[%emt 0:07:00]} ({Predecessor:} 12... Rc8 13. a4 c4 14. dxc4 bxc4 15. Nbd4 Be4 16. Qd1 e5 17. Nc2 Nc5 18. Nxe5 Nb3 19. Bxe4 Nxe4 {0-1 (38) Korsunsky,Y (2395)-Godart,F (2407) Struga 2021}) 13. a4 {[%emt 0:02:01]} b4 {[%emt 0:00:52]} 14. Be3 {[%emt 0:01:58]} Rc8 {[%emt 0:20:42]} 15. Nfd2 {[%emt 0:14:35]} Bd5 {[%emt 0:02:31]} 16. Nc4 {[%emt 0:02:24]} Ra8 {[%emt 0:08:02]} 17. Bf4 {[%emt 0:10:35]} Ra7 {[%emt 0:08:01]} 18. e4 {[%emt 0:01:10]} Bxc4 {[%emt 0:03:52]} 19. Qxc4 {[%emt 0:00:37]} Qb6 {[%emt 0:00:30]} 20. Rfc1 {[%emt 0:01:29]} Ng4 {[%emt 0:11:16]} 21. h3 {[%emt 0:06:09]} Nge5 {[%emt 0:00:39] Pair of Knights!} 22. Qc2 {[%emt 0:00:07]} Nc6 {[%emt 0:02:45]} 23. Be3 {[%emt 0:04:15][%cal Rb3c5]} Nd4 {[%emt 0:01:49]} 24. Bxd4 {[%emt 0:00:36]} cxd4 {[%emt 0:00:07]} 25. Qc4 {[%emt 0:01:57]} Ne5 {[%emt 0:01:57]} 26. Qxd4 {[%emt 0:03:02]} Qxd4 {[%emt 0:00:10]} 27. Nxd4 {[%emt 0:00:01]} Rd8 {[%emt 0:02:11]} (27... Nxd3 $11 28. Rc2 Bf6) 28. Nb5 $16 {[%emt 0:00:51] Black is now going downhill.} Rad7 {[%emt 0:02:16]} 29. d4 {[%emt 0:00:02][%cal Bd3d4,Bd4d5][%mdl 32]} Nd3 {[%emt 0:00:34][%csl LRb2,LRc1]} 30. Rc2 {[%emt 0:00:52]} e5 {[%emt 0:00:48] [#]} (30... b3 $16 {might work better.} 31. Rd2 (31. Rc3 Nb4 $16) 31... Nb4) 31. Bf1 $1 $18 {[%emt 0:00:51][%cal Bg2f1,Bf1e2,Be2g4,Bg4e6][%mdl 32]} b3 {[%emt 0:00:55][%cal Oe5d4]} 32. Rc3 {[%emt 0:00:49]} Nb4 {[%emt 0:00:40] [#]} 33. d5 {[%emt 0:00:37]} (33. dxe5 Rd2 34. Bc4 (34. Rxb3 Bc5 $14) 34... Nd3 $16) (33. Rxb3 exd4 34. Bd3 Na6 $14) 33... f5 {[%emt 0:00:42]} 34. f3 {[%emt 0:01:34]} (34. Rxb3 $6 fxe4 35. Bc4 Kh8 $16) (34. exf5 $6 Nxd5 35. Rxb3 Nf6) 34... fxe4 {[%emt 0:03:54]} 35. fxe4 {[%emt 0:00:02]} Rf8 {[%emt 0:00:21]} (35... Nc2 $142) 36. Be2 {[%emt 0:02:21]} ({Much less strong is} 36. Rxb3 Bc5+ 37. Kh1 g6) 36... Bd8 {[%emt 0:00:53]} 37. Bg4 {[%emt 0:01:31]} Rb7 {[%emt 0:00:47]} (37... Bb6+ 38. Kh1 Rdd8 39. Rxb3 Na6) 38. Be6+ {[%emt 0:01:28]} ({Don't play} 38. Rxb3 g6 39. Na3 Bb6+ 40. Kh1 Bd4 $18) 38... Kh8 {[%emt 0:00:01]} 39. Nd6 {[%emt 0:00:18][%cal Bb5d6,Bd6f7,Bf7e5,Be5d7][%mdl 32]} ({But not} 39. Rxb3 Bb6+ 40. Kh1 g6 $18) 39... Bb6+ {[%emt 0:00:54]} 40. Kh1 {[%emt 0:00:01]} Rbb8 {[%emt 0:00:28]} 41. Nf7+ {[%emt 0:00:14] White is clearly winning.} Kg8 {[%emt 0:00:01]} (41... Rxf7 $142 42. Bxf7 g6) 42. Nxe5+ {[%emt 0:00:07]} Kh8 {[%emt 0:00:02]} 43. Nd7 {[%emt 0:00:08] Weighted Error Value: White=0.08 (flawless) /Black=0.36} 1-0

[Event "12th WLC Weekend 2022"]
[Site "Eindhoven"]
[Date "2022.05.14"]
[Round "2.23"]
[White "Blijlevens, Pim"]
[Black "Suranyi, Pal"]
[Result "0-1"]
[ECO "A42"]
[WhiteElo "1958"]
[BlackElo "2013"]
[Annotator "TA"]
[PlyCount "36"]
[EventDate "2022.05.13"]
[EventType "swiss"]
[EventCountry "NED"]
[SourceTitle "playchess.com"]
[Source "ChessBase"]
[SourceQuality "1"]
[TimeControl "5400+30"]

{[%evp 11,36,-4,-6,-18,-12,-12,-8,0,-13,-39,0,-40,-27,-59,-58,-54,-62,-60,-29,-82,-72,-71,-66,-398,-389,-373,-341]} 1. d4 {[%emt 0:00:06]} g6 {[%emt 0:02:23]} 2. c4 {[%emt 0:00:37]} Bg7 {[%emt 0:00:10]} 3. Nc3 {[%emt 0:00:07]} d6 {[%emt 0:00:07]} 4. e4 {[%emt 0:00:13]} e5 {[%emt 0:00:38]} 5. Be3 {[%emt 0:02:20]} exd4 {[%emt 0:00:25]} 6. Bxd4 {[%emt 0:00:08]} Nf6 $1 {[%emt 0:00:04]} 7. Qd2 {[%emt 0:03:15] A42: Modern Defence: Averbakh Variation.} Nc6 {[%emt 0:00:44]} 8. Be3 {[%emt 0:00:25]} Ng4 {[%emt 0:05:10]} 9. Bg5 {[%emt 0:01:23] The position is equal.} f6 {[%emt 0:00:23]} 10. Bf4 {[%emt 0:02:32]} Be6 {[%emt 0:00:59] [#]} 11. Nf3 $146 {[%emt 0:02:49]} ({Predecessor:} 11. Be2 O-O 12. Nf3 Nge5 13. b3 Nxf3+ 14. Bxf3 g5 15. Be3 f5 16. exf5 Bxf5 17. Rc1 {½-½ (50) Sorvari,J (2041)-Ponnio,T (1951) Jyvaskyla 2012}) 11... Qd7 {[%emt 0:01:46]} 12. b3 {[%emt 0:02:37]} O-O-O {[%emt 0:07:30]} 13. Be2 {[%emt 0:01:35]} g5 {[%emt 0:09:34]} 14. Bg3 {[%emt 0:03:24]} h6 {[%emt 0:01:07]} 15. O-O-O {[%emt 0:04:07] [#]} (15. Rd1 $11 {remains equal.}) 15... f5 $1 $17 {[%emt 0:01:57]} 16. exf5 {[%emt 0:01:29]} ({Much worse is} 16. h3 f4 17. hxg4 fxg3 18. fxg3 Bxg4 $17) 16... Bxf5 {[%emt 0:00:09]} 17. Bd3 $2 {[%emt 0:04:48][%mdl 8192] [#]} ({Better is} 17. Rhe1 $15) 17... Bxd3 $1 $19 {[%emt 0:03:39]} 18. Qxd3 {[%emt 0:00:11]} Nb4 {[%emt 0:00:15] Weighted Error Value: White=0.61/Black=0.06 (flawless)} 0-1

[Event "12th WLC Weekend 2022"]
[Site "Eindhoven"]
[Date "2022.05.14"]
[Round "2.24"]
[White "Bakija, Alan"]
[Black "Van de Lagemaat, Arend"]
[Result "0-1"]
[ECO "D02"]
[WhiteElo "1868"]
[BlackElo "1995"]
[Annotator "TA"]
[PlyCount "126"]
[EventDate "2022.05.13"]
[EventType "swiss"]
[EventCountry "NED"]
[SourceTitle "playchess.com"]
[Source "ChessBase"]
[SourceQuality "1"]
[TimeControl "5400+30"]

{[%evp 17,126,20,22,16,21,15,20,14,15,16,20,17,25,27,26,18,24,13,21,3,9,1,17,0,0,0,0,0,8,3,135,134,214,230,203,206,218,162,162,162,197,200,185,168,153,173,237,104,128,122,176,164,288,288,464,451,506,475,1039,497,485,445,1012,818,995,713,676,712,650,174,529,-243,-229,-297,-276,-487,-443,-442,-279,-311,-312,-308,-210,-539,-533,-538,-524,-539,-522,-524,-521,-537,-533,-613,-570,-817,-766,-1448,-1414,-1715,-1632,-29970,-29971,-29982,-29983,-29982,-29983,-29984,-29985,-29985,-29986]} 1. Nf3 {[%emt 0:00:04]} d5 {[%emt 0:00:19]} 2. g3 {[%emt 0:00:05]} c5 {[%emt 0:00:28]} 3. Bg2 {[%emt 0:00:24]} Nc6 {[%emt 0:00:41]} 4. d4 {[%emt 0:00:05]} Nf6 {[%emt 0:01:09]} 5. O-O {[%emt 0:03:11]} Bg4 {[%emt 0:03:50]} 6. Ne5 {[%emt 0:03:47]} cxd4 {[%emt 0:04:27]} 7. Nxg4 {[%emt 0:07:09]} Nxg4 {[%emt 0:00:25]} 8. e3 {[%emt 0:00:18]} Nf6 {[%emt 0:01:52]} 9. exd4 {[%emt 0:00:05]} e6 {[%emt 0:00:14]} 10. b3 {[%emt 0:07:19] D02: 1 d4 d5 2 Nf3 sidelines, including 2...Nf6 3 g3 and 2...Nf6 3 Bf4.} Be7 {[%emt 0:01:03]} 11. Bb2 {[%emt 0:00:04]} O-O {[%emt 0:00:27]} 12. Nd2 {[%emt 0:01:24] The position is equal.} Qb6 {[%emt 0:01:41] [#]} 13. c3 $146 {[%emt 0:02:10]} ({Predecessor:} 13. Nf3 Rfd8 14. Qe2 Rac8 15. Rfd1 a5 16. c4 a4 17. c5 Qa5 18. Qd3 Ne4 19. a3 {½-½ (19) Askarov,M (2434)-Abrashkin,B (2388) Cheliabinsk 2005}) 13... Rfc8 {[%emt 0:02:49]} 14. Qe2 {[%emt 0:11:26]} a5 {[%emt 0:03:38]} 15. a4 {[%emt 0:06:11]} Bf8 {[%emt 0:07:45]} 16. Rfd1 {[%emt 0:15:02]} Rd8 {[%emt 0:04:33]} 17. Qb5 {[%emt 0:01:37]} Qc7 {[%emt 0:02:39]} 18. Nf1 {[%emt 0:00:38]} Ra6 {[%emt 0:04:07]} 19. Qd3 {[%emt 0:11:25]} Rb6 {[%emt 0:00:57]} 20. c4 {[%emt 0:01:15]} dxc4 {[%emt 0:01:21]} 21. Qxc4 {[%emt 0:00:05]} Rb4 {[%emt 0:04:00]} 22. Qc2 {[%emt 0:00:18]} Qb6 {[%emt 0:00:57]} 23. Bxc6 {[%emt 0:00:45] aiming for Bb5.} bxc6 {[%emt 0:04:00] [#]} (23... Qxc6 24. Qxc6 bxc6) (23... Rc8 $11 {remains equal.}) 24. Bc3 $1 $16 {[%emt 0:01:45]} Rbxd4 {[%emt 0:06:45]} (24... Nd5) (24... Nd5 $16) 25. Bxd4 $18 {[%emt 0:00:21]} Rxd4 {[%emt 0:00:18]} 26. Rxd4 {[%emt 0:00:08]} Qxd4 {[%emt 0:00:04]} 27. Rd1 {[%emt 0:00:25]} Qb6 {[%emt 0:00:16]} 28. Rc1 {[%emt 0:00:27]} Ng4 {[%emt 0:07:29]} 29. Qe2 {[%emt 0:01:08]} h5 {[%emt 0:04:54]} 30. h3 $36 {[%emt 0:01:24][%mdl 2048] White is really pushing.} Nf6 {[%emt 0:03:50]} 31. Qc4 {[%emt 0:00:07]} Nd5 {[%emt 0:04:58]} (31... c5 32. Nd2 Bd6) (31... Ba3 {might work better.}) 32. Nd2 {[%emt 0:03:02]} (32. Qxc6 Qxb3 33. Qb5) (32. Qxc6 $18 {and the rest is easy.} Qxc6 33. Rxc6) 32... Nb4 {[%emt 0:00:29]} 33. Nf3 {[%emt 0:01:09]} Bd6 {[%emt 0:01:55]} (33... g6 $16) 34. Kg2 {[%emt 0:02:10]} Bb8 {[%emt 0:01:25]} (34... c5 $142 35. Ng5 Be7) 35. Qc5 {[%emt 0:02:55]} Qc7 {[%emt 0:00:22]} (35... Qd8 36. Qxh5 Ba7) 36. Qxh5 {[%emt 0:01:14]} Ba7 {[%emt 0:04:06]} 37. Ng5 {[%emt 0:02:13]} Bxf2 {[%emt 0:03:31]} (37... Bd4 38. Qh7+ Kf8 39. Qh8+ Ke7) (37... Bd4 $142 38. Qh7+ Kf8 39. Qh8+ Ke7) 38. Qh7+ {[%emt 0:13:52]} (38. Rc3 Nd5 39. Qh7+ Kf8 40. Rf3 Ne3+ 41. Kxf2) (38. Rc3 $142 {Hoping for Rf3.} Bxg3 39. Qh7+ Kf8 40. Qh8+ Ke7 41. Qxg7) 38... Kf8 {[%emt 0:00:09]} 39. Kxf2 {[%emt 0:00:52]} (39. Qh8+ Ke7 40. Kxf2 Qb6+ 41. Kg2 Qd4) (39. Qh8+ Ke7 40. Kxf2 Qb6+ 41. Kg2 Qd4 $18) 39... Qe5 {[%emt 0:01:09] [#]} (39... Qd6 40. Kf3 Qd5+ 41. Kg4 Qd4+ 42. Qe4 f5+ 43. Kh4 Qxe4+ 44. Nxe4 fxe4) (39... Qd6 $142 40. Kf3 Qd5+ 41. Kg4 Qd4+ 42. Qe4 f5+ 43. Kh4 Qxe4+ 44. Nxe4 fxe4) 40. Rd1 $1 {[%emt 0:01:27][%cal Oh7g8] White threatens Qg8+! and mate.} Nd5 {[%emt 0:01:25]} (40... Qf6+ 41. Kg1) 41. Qh5 {[%emt 0:00:58][%csl Gg5][%cal Rh5f7]} Qe3+ {[%emt 0:04:48]} 42. Kg2 {[%emt 0:00:15][%csl Gg5][%cal Rh5f7]} g6 {[%emt 0:00:04]} 43. Qg4 $2 {[%emt 0:00:45]} ({Weaker is} 43. Qh8+ Ke7 44. Qd4 Qxg5 $16) (43. Qh6+ Ke7 44. Rf1 Qe2+ 45. Kg1) 43... Qxb3 $2 {[%emt 0:00:19]} (43... f5 44. Qd4 Qxg5) (43... f5 {is a better chance.} 44. Qd4 Qxg5) 44. Qf3 $4 {[%emt 0:00:35][%mdl 8192]} (44. Kg1 $18 {and life is good for White.}) 44... Ne3+ $19 {[%emt 0:02:15]} 45. Kh2 {[%emt 0:00:28][%csl Gg5][%cal Rf3f7]} Qc2+ {[%emt 0:00:27]} 46. Rd2 $2 {[%emt 0:00:30]} (46. Kg1 Qxd1+ 47. Qxd1 Nxd1 48. Nf3) 46... Qxd2+ {[%emt 0:00:09][%mdl 4096] Endgame KQN-KQN} 47. Kg1 {[%emt 0:00:05][%csl Gg5][%cal Rf3f7]} Qd1+ {[%emt 0:03:09]} 48. Qxd1 {[%emt 0:00:04]} Nxd1 {[%emt 0:00:33] KN-KN} 49. Nf3 {[%emt 0:00:01]} Nb2 {[%emt 0:00:33]} 50. Nd4 $2 {[%emt 0:00:04]} (50. Ne5) 50... c5 {[%emt 0:00:31]} 51. Nb3 {[%emt 0:00:16]} Nxa4 {[%emt 0:00:55]} 52. Nxa5 {[%emt 0:00:03]} Kg7 {[%emt 0:00:29]} 53. Nc4 {[%emt 0:00:17]} f5 {[%emt 0:00:49]} 54. Kf2 {[%emt 0:00:50]} Kf6 {[%emt 0:00:05]} 55. g4 {[%emt 0:01:14]} Nc3 {[%emt 0:01:17]} 56. Kf3 {[%emt 0:00:29]} e5 {[%emt 0:00:38][%cal Be6e5,Be5e4][%mdl 32]} 57. Ne3 {[%emt 0:01:46]} e4+ {[%emt 0:00:22]} 58. Kg3 {[%emt 0:00:08]} Ke5 {[%emt 0:00:37] ( -> ...f4+)} 59. Ng2 {[%emt 0:00:43] Inhibits f4+.} Nd5 {[%emt 0:00:50] Black mates.} 60. h4 {[%emt 0:00:38]} f4+ {[%emt 0:01:56]} 61. Kf2 {[%emt 0:00:04]} Nf6 {[%emt 0:00:16]} 62. g5 {[%emt 0:00:48]} Nh5 {[%emt 0:00:35]} 63. Ne1 {[%emt 0:00:19]} Kd4 {[%emt 0:00:16] Weighted Error Value: White=0.63/Black=0.45} 0-1

[Event "12th WLC Weekend 2022"]
[Site "Eindhoven"]
[Date "2022.05.14"]
[Round "2.25"]
[White "Winkels, Marcel"]
[Black "Kurt, Sascha"]
[Result "1-0"]
[ECO "B40"]
[WhiteElo "1965"]
[BlackElo "1751"]
[Annotator "TA"]
[PlyCount "145"]
[EventDate "2022.05.13"]
[EventType "swiss"]
[EventCountry "NED"]
[SourceTitle "playchess.com"]
[Source "ChessBase"]
[SourceQuality "1"]
[TimeControl "5400+30"]

{[%evp 9,144,37,32,30,33,16,35,42,55,61,51,49,96,97,89,52,292,339,324,320,333,336,339,336,356,335,354,329,415,396,477,487,482,477,768,752,1005,994,2357,2019,29978,29979,29979,29980,5597,688,685,683,692,692,716,710,722,706,772,690,779,606,593,590,772,758,779,704,710,690,775,776,766,762,759,745,791,762,894,838,965,984,1306,1255,1527,1567,1639,1314,1178,1174,5026,2045,29974,29975,29976,29978,29978,29974,29955,2213,29980,29977,29978,29979,29981,29982,29982,29983,29983,29984,29984,29985,29989,29982,29989,29989,29988,29976,29986,29987,29987,29988,29988,29989,29989,29990,29990,29990,29991,29991,29992,29992,29993,29994,29994,29994,29995,29995,29998,29999,29999]} 1. e4 {[%emt 0:00:02]} c5 {[%emt 0:00:08]} 2. Nf3 {[%emt 0:00:08]} e6 {[%emt 0:00:08]} 3. d3 {[%emt 0:00:17]} Nc6 {[%emt 0:00:27]} 4. g3 {[%emt 0:00:08]} b6 {[%emt 0:00:49]} 5. Bg2 {[%emt 0:00:09]} Bb7 {[%emt 0:00:12]} 6. O-O {[%emt 0:00:12] B40: Sicilian: 2...e6, Unusual lines.} Be7 {[%emt 0:00:55]} 7. c3 {[%emt 0:00:38]} d6 {[%emt 0:00:57] [#]} 8. d4 $146 {[%emt 0:00:29] White is slightly better.} ({Predecessor:} 8. Qe2 Qc7 9. Bf4 e5 10. Bc1 Nf6 11. Nbd2 O-O 12. Nh4 g6 13. Nc4 b5 14. Ne3 {0-1 (33) Karyagin,D (2007)-Antropov,A (2111) Nizhnij Tagil 2006}) 8... cxd4 {[%emt 0:04:14]} 9. cxd4 {[%emt 0:00:21]} Nf6 {[%emt 0:00:27]} (9... d5) 10. d5 {[%emt 0:02:22]} exd5 {[%emt 0:01:35]} (10... Ne5 $14) 11. exd5 $16 {[%emt 0:00:17]} Ne5 {[%emt 0:00:26]} 12. Nc3 {[%emt 0:08:08]} O-O $2 {[%emt 0:01:05] [#] A mistake that costs the game.} (12... Nxf3+ 13. Qxf3 O-O) (12... Nxf3+ $14 13. Qxf3 O-O) 13. Nxe5 $1 $18 {[%emt 0:01:19]} dxe5 {[%emt 0:00:47]} 14. d6 $1 {[%emt 0:00:57]} Bxg2 {[%emt 0:07:22]} 15. dxe7 {[%emt 0:00:16]} Qxe7 {[%emt 0:00:32]} 16. Kxg2 {[%emt 0:00:08]} Qb7+ {[%emt 0:00:18]} 17. Kg1 {[%emt 0:00:53]} Rad8 {[%emt 0:01:27]} 18. Qe2 {[%emt 0:00:23]} Qd7 {[%emt 0:01:05]} 19. Bg5 {[%emt 0:00:41]} Qh3 {[%emt 0:00:54]} 20. Bxf6 {[%emt 0:00:36]} gxf6 {[%emt 0:00:06]} 21. Rfd1 {[%emt 0:00:24]} Rc8 {[%emt 0:01:19]} (21... Qe6 22. Qa6 Rd4 23. Rxd4 exd4) (21... Kh8 $142 22. Qa6 Rd4 23. Rxd4 exd4) 22. Rd6 {[%emt 0:02:53]} Rc5 {[%emt 0:02:34]} 23. Ne4 {[%emt 0:00:53]} Ra5 {[%emt 0:00:50]} 24. b4 {[%emt 0:00:32]} Ra3 {[%emt 0:00:12]} 25. Nxf6+ {[%emt 0:00:43]} Kh8 {[%emt 0:00:16]} 26. Qxe5 {[%emt 0:00:24]} Rf3 {[%emt 0:01:23]} 27. Qh5 {[%emt 0:01:25]} Qxh5 {[%emt 0:01:09]} 28. Nxh5 {[%emt 0:00:06]} Rf5 {[%emt 0:00:44]} 29. Nf4 {[%emt 0:00:43]} Rc8 {[%emt 0:00:23]} 30. Rad1 {[%emt 0:00:27]} Rc2 {[%emt 0:00:15]} 31. R1d2 {[%emt 0:00:19]} Rc4 {[%emt 0:00:27]} 32. R6d4 {[%emt 0:00:12]} Rc3 {[%emt 0:00:18]} 33. Rd5 {[%emt 0:01:14]} Rxd5 {[%emt 0:00:16]} 34. Rxd5 {[%emt 0:00:08][%mdl 4096] Endgame KRN-KR} Rc2 {[%emt 0:00:41]} 35. a4 {[%emt 0:03:20]} Rb2 {[%emt 0:01:22]} 36. Nd3 {[%emt 0:00:32]} Rb3 {[%emt 0:00:29]} 37. Kf1 {[%emt 0:00:28]} Ra3 {[%emt 0:00:09]} 38. a5 {[%emt 0:00:17]} bxa5 {[%emt 0:00:06]} 39. bxa5 {[%emt 0:00:06]} Kg7 {[%emt 0:00:17]} 40. Ke2 {[%emt 0:00:03]} Ra2+ {[%emt 0:00:19]} 41. Ke3 {[%emt 0:00:12]} Ra3 {[%emt 0:00:08]} 42. h4 {[%emt 0:00:31]} h6 {[%emt 0:00:10]} 43. Kd4 {[%emt 0:00:53]} Kf6 {[%emt 0:00:44]} 44. Rd6+ {[%emt 0:00:18]} Ke7 {[%emt 0:00:12]} 45. Ra6 {[%emt 0:00:07]} Ra4+ {[%emt 0:00:13]} 46. Ke3 {[%emt 0:00:09]} f5 {[%emt 0:00:54]} 47. Rxa7+ {[%emt 0:00:08]} Kf6 {[%emt 0:00:09]} 48. a6 {[%emt 0:00:15]} Ra3 {[%emt 0:00:23]} 49. Ra8 {[%emt 0:00:11]} Kg7 {[%emt 0:00:14]} 50. a7 {[%emt 0:01:40]} Kh7 {[%emt 0:00:27]} 51. Rf8 {[%emt 0:00:29]} Rxa7 {[%emt 0:00:09]} 52. Rxf5 {[%emt 0:00:07]} (52. Ne5 $142 Kg7 53. Rxf5 Ra3+ 54. Ke4 Ra4+ 55. Kf3 Kg8 56. Rh5 Ra3+ 57. Kg2) 52... Re7+ {[%emt 0:00:09]} 53. Kf3 {[%emt 0:00:13] White mates.} Rd7 {[%emt 0:00:45]} 54. Ne5 {[%emt 0:00:10]} Rd5 {[%emt 0:00:17]} 55. Ke4 {[%emt 0:00:50]} (55. Kg4 Rd6 56. Rf7+ Kh8 57. Kf5 h5 58. Rf6 Rd5 59. Kg6 Kg8 60. f4) 55... Ra5 {[%emt 0:00:07]} 56. Rf7+ {[%emt 0:00:20]} Kg8 {[%emt 0:00:08]} 57. Rc7 {[%emt 0:00:26]} Ra6 {[%emt 0:00:15]} 58. Kf5 {[%emt 0:00:25]} Rd6 {[%emt 0:00:24]} 59. f3 {[%emt 0:00:30]} h5 {[%emt 0:00:20]} 60. Rc6 {[%emt 0:00:42]} Rd4 {[%emt 0:00:27]} 61. Rh6 {[%emt 0:00:24]} Rd5 {[%emt 0:00:20]} 62. Rxh5 {[%emt 0:00:23]} Rd6 {[%emt 0:00:08]} 63. Rg5+ {[%emt 0:00:12]} Kh7 {[%emt 0:00:39]} 64. g4 {[%emt 0:00:36][%cal Bg3g4,Bg4g5][%mdl 32]} Ra6 {[%emt 0:00:13]} 65. Rg6 {[%emt 0:00:14]} Ra7 {[%emt 0:00:21]} 66. h5 {[%emt 0:00:23][%cal Bh4h5,Bh5h6,Bh6h7][%mdl 32]} Rb7 {[%emt 0:00:35]} 67. Rf6 {[%emt 0:00:25]} Rb4 {[%emt 0:00:24]} 68. g5 {[%emt 0:00:17]} Kg8 {[%emt 0:00:17]} 69. h6 {[%emt 0:00:58]} Ra4 {[%emt 0:00:37]} 70. f4 {[%emt 0:00:33]} Rb4 {[%emt 0:00:21]} 71. Kg6 {[%emt 0:00:16]} Rb8 {[%emt 0:00:32]} 72. h7+ {[%emt 0:00:12]} Kh8 {[%emt 0:00:07]} 73. Nf7# {[%emt 0:00:06] Weighted Error Value: White=0.29 (precise) /Black=0.97} 1-0